fUST/lending_fUST_20260122
["ID","MTS","AMOUNT","RATE_DAILY","PERIOD"]
[403019991,1769071839982,-151.0,0.000199,2]
[403019992,1769071839992,-150.14,0.000199,2]
[403019993,1769071840001,-151.0,0.000199,2]
[403019994,1769071840010,-151.0,0.000199,2]
[403019995,1769071840019,-151.0,0.000199,2]
[403019996,1769071840028,-151.0,0.000199,2]
[403019997,1769071840037,-2495.5,0.000199,2]
[403019998,1769071840047,-2242.0,0.00019959,2]
[403019999,1769071840056,-204.0,0.00019969,2]
[403020000,1769071840065,-4992.16,0.00019984,2]
[403020001,1769071840075,-2242.0,0.00019992,2]
[403020002,1769071840084,-508.57426704,0.00019998,2]
[403020003,1769071840093,-2263.97,0.00019998,2]
[403020004,1769071840103,-527.4,0.00019998,2]
[403020005,1769071840112,-500.0,0.00019998,2]
[403020006,1769071840121,-500.0,0.00019998,2]
[403020007,1769071840131,-500.0,0.00019998,2]
[403020008,1769071840141,-1009.473721,0.00019998,2]
[403020009,1769071840150,-1009.473721,0.00019998,2]
[403020010,1769071840159,-1009.473721,0.00019998,2]
[403020011,1769071840168,-1009.473729,0.00019998,2]
[403020012,1769071840178,-2263.97,0.00019999,2]
[403020013,1769071840188,-527.4,0.00019999,2]
[403020014,1769071840198,-500.0,0.00019999,2]
[403020015,1769071840207,-500.0,0.00019999,2]
[403020016,1769071840216,-500.0,0.00019999,2]
[403020017,1769071840225,-573.64014969,0.00019999,2]
[403020018,1769071840234,-2000.0,0.0002,7]
[403020019,1769071840243,-205.304388,0.0002,2]
[403020020,1769071840253,-154.763112,0.0002,2]
[403020021,1769071840264,-205.304388,0.0002,2]
[403020022,1769071840273,-154.763112,0.0002,2]
[403020023,1769071840283,-2242.0,0.00020029,2]
[403020024,1769071840292,-502.89555556,0.00020093,2]
[403020025,1769071840302,-2242.0,0.00020111,2]
[403020026,1769071840311,-171.73,0.00020172,2]
[403020027,1769071840321,-177.1348495,0.00020232,2]
[403020028,1769071840330,-2263.97,0.00020239,2]
[403020029,1769071840339,-527.4,0.00020239,2]
[403020030,1769071840349,-500.0,0.00020239,2]
[403020031,1769071840358,-501.57168607,0.00020239,2]
[403020032,1769071840367,-500.0,0.00020239,2]
[403020033,1769071840377,-475.0,0.0002024,2]
[403020034,1769071840386,-475.0,0.0002024,2]
[403020035,1769071840395,-475.0,0.0002024,2]
[403020036,1769071840404,-475.0,0.0002024,2]
[403020037,1769071840413,-475.0,0.0002024,2]
[403020038,1769071840422,-475.0,0.0002024,2]
[403020039,1769071840432,-2242.0,0.00020276,2]
[403020040,1769071840441,-2242.0,0.00020415,2]
[403020041,1769071840451,-2000.0,0.000205,7]
[403020042,1769071840460,-2263.97,0.00020544,2]
[403020043,1769071840470,-2263.97,0.00020544,2]
[403020044,1769071840479,-527.4,0.00020544,2]
[403020045,1769071840488,-527.4,0.00020544,2]
[403020046,1769071840497,-307.06296642,0.00020544,2]
[403020047,1769071840507,-500.0,0.00020544,2]
[403020048,1769071840516,-500.0,0.00020544,2]
[403020049,1769071840525,-3130.64006096,0.00020545,2]
[403020050,1769071840535,-2242.0,0.00020558,2]
[403020051,1769071840544,-5616.18,0.00020697,2]
[403020052,1769071840554,-167.0,0.00020721,120]
[403020053,1769071840563,-2242.0,0.00020785,2]
[403020054,1769071840573,-2242.0,0.00020839,2]
[403020055,1769071840582,-2242.0,0.00020884,2]
[403020056,1769071840591,-21724.76519705,0.00020976,2]
[403020057,1769071840600,-205.304388,0.00020976,2]
[403020058,1769071840610,-154.763112,0.00020976,2]
[403020059,1769071840619,-205.304388,0.00020976,2]
[403020060,1769071840629,-154.763112,0.00020976,2]
[403020061,1769071840638,-3999.999999,0.00021,2]
[403020062,1769071840647,-2000.0,0.00021,7]
[403020063,1769071840656,-2263.97,0.00021024,2]
[403020064,1769071840666,-527.4,0.00021024,2]
[403020065,1769071840675,-500.0,0.00021024,2]
[403020066,1769071840684,-475.0,0.00021025,2]
[403020067,1769071840694,-2242.0,0.00021093,2]
[403020068,1769071840703,-2242.0,0.00021118,2]
[403020069,1769071840711,-2242.0,0.00021127,2]
[403020070,1769071840720,-2000.0,0.00021136,7]
[403020071,1769071840729,-2000.0,0.00021136,7]
[403020072,1769071840738,-2000.0,0.00021136,7]
[403020073,1769071840747,-2000.0,0.00021136,7]
[403020074,1769071840756,-2242.0,0.00021142,2]
[403020075,1769071840765,-296.6198822,0.00021153,2]
[403020076,1769071840774,-533.91578795,0.00021153,2]
[403020077,1769071840783,-949.18362303,0.00021153,2]
[403020078,1769071840792,-488.5278439,0.00021153,2]
[403020079,1769071840802,-692.54970543,0.00021153,2]
[403020080,1769071840811,-1246.58946977,0.00021153,2]
[403020081,1769071840820,-437.68766254,0.00021153,2]
[403020082,1769071840830,-367.54076386,0.00021153,2]
[403020083,1769071840840,-661.57337495,0.00021153,2]
[403020084,1769071840849,-879.35011902,0.00021153,2]
[403020085,1769071840859,-3616.62427907,0.0002117,2]
[403020086,1769071840868,-3697.74916643,0.0002117,2]
[403020087,1769071840879,-2242.0,0.00021181,2]
[403020088,1769071840888,-1176.13044436,0.00021204,2]
[403020089,1769071840896,-16507.194619,0.00021213,7]
[403020090,1769071840905,-205.304388,0.00021213,2]
[403020091,1769071840916,-154.763112,0.00021213,2]
[403020092,1769071840925,-205.304388,0.00021213,2]
[403020093,1769071840934,-629.0,0.00021214,2]
[403020094,1769071840943,-2148.0,0.00021214,2]
[403020095,1769071840954,-1368.0,0.00021214,2]
[403020096,1769071840964,-500.324,0.00021252,2]
[403020097,1769071840975,-12110.681346,0.00021252,7]
[403020098,1769071840984,-2242.0,0.00021291,2]
[403020099,1769071840994,-6240.2,0.00021411,2]
[403020100,1769071841003,-2000.0,0.000215,7]
[403020101,1769071841013,-151.0,0.00021522,2]
[403020102,1769071841023,-151.0,0.00021522,2]
[403020103,1769071841034,-151.0,0.00021522,2]
[403020104,1769071841043,-151.0,0.00021522,2]
[403020105,1769071841053,-168.3888056,0.00021522,2]
[403020106,1769071841062,-151.0,0.00021522,2]
[403020107,1769071841072,-250.0,0.00021522,2]
[403020108,1769071841082,-461.67526834,0.00021522,2]
[403020109,1769071841091,-174.61919141,0.00021522,2]
[403020110,1769071841101,-151.0,0.00021522,2]
[403020111,1769071841110,-250.0,0.00021522,2]
[403020112,1769071841119,-181.08010149,0.00021522,2]
[403020113,1769071841128,-151.0,0.00021522,2]
[403020114,1769071841138,-151.0,0.00021522,2]
[403020115,1769071841147,-250.0,0.00021522,2]
[403020116,1769071841156,-187.78006525,0.00021522,2]
[403020117,1769071841166,-151.0,0.00021522,2]
[403020118,1769071841176,-250.0,0.00021522,2]
[403020119,1769071841185,-194.72792766,0.00021522,2]
[403020120,1769071841194,-151.0,0.00021522,2]
[403020121,1769071841203,-250.0,0.00021522,2]
[403020122,1769071841212,-201.93286099,0.00021522,2]
[403020123,1769071841221,-151.0,0.00021522,2]
[403020124,1769071841230,-151.0,0.00021522,2]
[403020125,1769071841239,-151.0,0.00021522,2]
[403020126,1769071841248,-169.031667,0.00021522,2]
[403020127,1769071841258,-209.40437684,0.00021522,2]
[403020128,1769071841267,-151.0,0.00021522,2]
[403020129,1769071841276,-151.0,0.00021522,2]
[403020130,1769071841285,-217.15233878,0.00021522,2]
[403020131,1769071841294,-151.0,0.00021522,2]
[403020132,1769071841304,-151.0,0.00021522,2]
[403020133,1769071841313,-225.18697532,0.00021522,2]
[403020134,1769071841323,-151.0,0.00021522,2]
[403020135,1769071841334,-151.0,0.00021522,2]
[403020136,1769071841343,-233.51889341,0.00021522,2]
[403020137,1769071841352,-151.0,0.00021522,2]
[403020138,1769071841363,-243.34409853,0.00021522,2]
[403020139,1769071841372,-242.15909246,0.00021522,2]
[403020140,1769071841382,-151.0,0.00021522,2]
[403020141,1769071841391,-251.11897888,0.00021522,2]
[403020142,1769071841400,-151.0,0.00021522,2]
[403020143,1769071841409,-260.4103811,0.00021522,2]
[403020144,1769071841419,-151.0,0.00021522,2]
[403020145,1769071841428,-270.0455652,0.00021522,2]
[403020146,1769071841437,-151.0,0.00021522,2]
[403020147,1769071841447,-174.57757323,0.00021522,2]
[403020148,1769071841455,-280.03725112,0.00021522,2]
[403020149,1769071841465,-152.03138784,0.00021522,2]
[403020150,1769071841474,-290.39862941,0.00021522,2]
[403020151,1769071841484,-151.0,0.00021522,2]
[403020152,1769071841493,-151.0,0.00021522,2]
[403020153,1769071841503,-2230.315306,0.00021522,2]
[403020154,1769071841512,-301.1433787,0.00021522,2]
[403020155,1769071841521,-151.0,0.00021522,2]
[403020156,1769071841531,-151.0,0.00021522,2]
[403020157,1769071841540,-151.0,0.00021522,2]
[403020158,1769071841549,-151.0,0.00021522,2]
[403020159,1769071841558,-151.0,0.00021522,2]
[403020160,1769071841715,-151.0,0.00021522,2]
[403020161,1769071841725,-151.0,0.00021522,2]
[403020162,1769071841736,-160.41818817,0.00021522,2]
[403020163,1769071841745,-1957.856,0.00021522,2]
[403020164,1769071841754,-168.3888056,0.00021522,2]
[403020165,1769071841763,-1234.81663869,0.00021522,2]
[403020166,1769071841772,-194.026,0.00021528,2]
[403020167,1769071841782,-515.0,0.00021533,2]
[403020168,1769071841792,-2030.296672,0.00021577,2]
[403020169,1769071841801,-2105.41764886,0.00021632,2]
[403020170,1769071841809,-2845.828816,0.00021642,7]
[403020171,1769071841818,-1650.719461,0.00021642,7]
[403020172,1769071841828,-2216.15905737,0.00021652,2]
[403020173,1769071841841,-1563.28910048,0.00021666,2]
[403020174,1769071841850,-2242.0,0.00021672,2]
[403020175,1769071841860,-2242.0,0.00021683,2]
[403020176,1769071841873,-2183.31810187,0.00021687,2]
[403020177,1769071841883,-1014.693423,0.00021739,7]
[403020178,1769071841893,-500.71195359,0.00021739,2]
[403020179,1769071841902,-2264.10087164,0.00021742,2]
[403020180,1769071841913,-167.0,0.00021757,120]
[403020181,1769071841922,-8579.70631016,0.00021789,2]
[403020182,1769071841931,-2347.87260389,0.00021797,2]
[403020183,1769071841942,-501.13222076,0.00021798,2]
[403020184,1769071841951,-2495.5,0.000218,2]
[403020185,1769071841962,-2434.74389024,0.00021852,2]
[403020186,1769071841975,-121106.813456,0.00021861,7]
[403020187,1769071841984,-344.35957662,0.00021889,2]
[403020188,1769071841993,-2524.82941417,0.00021907,2]
[403020189,1769071842003,-150.49999738,0.00021918,2]
[403020190,1769071842013,-2618.2481025,0.00021962,2]
[403020191,1769071842025,-231.0,0.00021969,2]
[403020192,1769071842034,-1000.0,0.00022,22]
[403020193,1769071842044,-150.14,0.00022,7]
[403020194,1769071842053,-28458.288156,0.00022,30]
[403020195,1769071842062,-2000.0,0.00022,2]
[403020196,1769071842071,-2000.0,0.00022,7]
[403020197,1769071842080,-2715.12328229,0.00022017,2]
[403020198,1769071842090,-1837.70381931,0.00022036,2]
[403020199,1769071842100,-478.75725327,0.0002207,2]
[403020200,1769071842110,-151.0,0.0002207,2]
[403020201,1769071842121,-2312.83697232,0.0002207,2]
[403020202,1769071842130,-2815.58284374,0.00022072,2]
[403020203,1769071842139,-2919.75940895,0.00022127,2]
[403020204,1769071842151,-3027.79050709,0.00022182,2]
[403020205,1769071842159,-750.85261864,0.00022237,2]
[403020206,1769071842176,-2388.96613721,0.00022237,2]
[403020207,1769071842185,-3255.99204981,0.00022292,2]
[403020208,1769071842194,-3376.46375566,0.00022347,2]
[403020209,1769071842205,-2197.52497832,0.00022402,2]
[403020210,1769071842530,-154.763112,0.00019843,2]
[403020211,1769071842540,-205.304388,0.00019843,2]
[403020212,1769071842549,-205.304388,0.00019899,2]
[403020213,1769071842559,-13.73072899,0.00019899,2]
[403020229,1769071843459,-3e-08,0.00019899,2]
[403020241,1769071847439,-154.763112,0.00019843,2]
[403020242,1769071847448,-1469.31,0.00019899,2]
[403020243,1769071847461,-1469.31,0.00019899,2]
[403020244,1769071847470,-141.03238298,0.00019899,2]
[403020245,1769071847479,-205.304388,0.00019899,2]
[403020246,1769071847489,-154.763112,0.00019899,2]
[403020247,1769071847498,-205.304388,0.0002,2]
[403020248,1769071847507,-154.763112,0.0002,2]
[403020249,1769071847516,-205.304388,0.0002,2]
[403020250,1769071847526,-154.763112,0.0002,2]
[403020251,1769071847535,-205.304388,0.00020976,2]
[403020252,1769071847544,-154.763112,0.00020976,2]
[403020253,1769071847553,-205.304388,0.00020976,2]
[403020254,1769071847562,-154.763112,0.00020976,2]
[403020255,1769071847571,-22.92185764,0.00021213,2]
[403020256,1769071907546,206.66,0.00015385,2]
[403020257,1769071907965,413.32,0.00016118,2]
[403020258,1769071930528,500.0,0.00013699,2]
[403020259,1769071932171,-3.31877568,0.0001685,2]
[403020260,1769071932258,192.81032104,0.00013699,2]
[403020261,1769071936763,500.0,0.00013273,2]
[403020262,1769071937525,300.0,0.00013673,2]
[403020263,1769071984142,205.39063794,0.00013273,2]
[403020264,1769071984164,294.60936206,0.00013273,2]
[403020265,1769071984189,501.746762,0.00013699,2]
[403020266,1769071984237,503.39647699,0.00013273,2]
[403020267,1769071987065,198.73,0.00014984,2]
[403020268,1769071987506,397.46,0.00015698,2]
[403020269,1769071987776,549.61217495,0.00013273,2]
[403020270,1769071988058,503.58398624,0.00013273,2]
[403020271,1769071988248,500.0,0.00013699,2]
[403020272,1769071988363,500.0,0.00013273,2]
[403020273,1769071988652,500.0,0.00013699,2]
[403020274,1769071998168,500.0,0.00013273,2]
[403020275,1769072001227,500.0,0.00013699,2]
[403020276,1769072001278,500.0,0.00014247,2]
[403020277,1769072001332,500.0,0.00013273,2]
[403020278,1769072001437,500.0,0.00013273,2]
[403020279,1769072043927,500.0,0.00013273,2]
[403020280,1769072044815,503.26528953,0.00013273,2]
[403020281,1769072046939,501.27245646,0.00013699,2]
[403020282,1769072050108,625.48240263,0.00016243,2]
[403020283,1769072050509,307.19587002,0.00016243,2]
[403020284,1769072050564,504.1318118,0.00013273,2]
[403020285,1769072052785,500.0,0.00016244,2]
[403020286,1769072052836,228.48240662,0.00016244,2]
[403020287,1769072052892,500.0,0.00016244,2]
[403020288,1769072053195,500.0,0.00016244,2]
[403020289,1769072053232,500.0,0.00016244,2]
[403020290,1769072053267,500.0,0.00016244,2]
[403020291,1769072053306,500.0,0.00016244,2]
[403020292,1769072053349,500.0,0.00016244,2]
[403020293,1769072053385,500.0,0.00016244,2]
[403020294,1769072053421,643.82256378,0.00016244,2]
[403020295,1769072053462,500.0,0.00016244,2]
[403020296,1769072054121,500.0,0.00016244,2]
[403020297,1769072054149,500.0,0.00016244,2]
[403020298,1769072054176,500.0,0.00016244,2]
[403020299,1769072054204,186.35719916,0.00016244,2]
[403020300,1769072054229,313.64280084,0.00016244,2]
[403020301,1769072054255,500.0,0.00016244,2]
[403020302,1769072054286,500.0,0.00016244,2]
[403020303,1769072054315,500.0,0.00016244,2]
[403020304,1769072054340,500.0,0.00013273,2]
[403020305,1769072054370,500.0,0.00016244,2]
[403020306,1769072054398,500.0,0.00016244,2]
[403020307,1769072054426,500.0,0.00016244,2]
[403020308,1769072054453,500.0,0.00016244,2]
[403020309,1769072056579,532.3110175,0.00016244,2]
[403020310,1769072056609,532.3110175,0.00016244,2]
[403020311,1769072056645,532.3110175,0.00016244,2]
[403020312,1769072056670,532.3110175,0.00016244,2]
[403020313,1769072056696,532.3110175,0.00016244,2]
[403020314,1769072056723,532.3110175,0.00016244,2]
[403020315,1769072056748,532.3110175,0.00016244,2]
[403020316,1769072056773,532.3110175,0.00016244,2]
[403020317,1769072056812,532.3110175,0.00016244,2]
[403020318,1769072056839,532.3110175,0.00016244,2]
[403020319,1769072056867,363.25702416,0.00016244,2]
[403020320,1769072056890,169.05399334,0.00016244,2]
[403020321,1769072056919,532.3110175,0.00016244,2]
[403020322,1769072056946,532.3110175,0.00016244,2]
[403020323,1769072056974,532.3110175,0.00016244,2]
[403020324,1769072057005,532.3110175,0.00016244,2]
[403020325,1769072057036,532.3110175,0.00016244,2]
[403020326,1769072057066,532.3110175,0.00016244,2]
[403020327,1769072057097,532.3110175,0.00016244,2]
[403020328,1769072057124,532.3110175,0.00016244,2]
[403020329,1769072057151,532.3110175,0.00016244,2]
[403020330,1769072057178,532.3110175,0.00016244,2]
[403020331,1769072057212,532.3110175,0.00016244,2]
[403020332,1769072057240,532.3110175,0.00016244,2]
[403020333,1769072057266,532.3110175,0.00016244,2]
[403020334,1769072057307,532.3110175,0.00016244,2]
[403020335,1769072057333,532.3110175,0.00016244,2]
[403020336,1769072057360,532.3110175,0.00016244,2]
[403020337,1769072057386,532.3110175,0.00016244,2]
[403020338,1769072057423,532.3110175,0.00016244,2]
[403020339,1769072057448,249.35769166,0.00016244,2]
[403020340,1769072057477,282.95332584,0.00016244,2]
[403020341,1769072057506,532.3110175,0.00016244,2]
[403020342,1769072057532,532.3110175,0.00016244,2]
[403020343,1769072057582,532.3110175,0.00016244,2]
[403020344,1769072057613,532.3110175,0.00016244,2]
[403020345,1769072057642,532.3110175,0.00016244,2]
[403020346,1769072057695,532.3110175,0.00016244,2]
[403020347,1769072066013,208.97,0.00014905,2]
[403020348,1769072066465,417.95,0.00015614,2]
[403020349,1769072080304,500.0,0.00016244,2]
[403020350,1769072080330,500.0,0.00016244,2]
[403020351,1769072080360,567.94991347,0.00016244,2]
[403020352,1769072080388,500.0,0.00016244,2]
[403020353,1769072080413,500.0,0.00016244,2]
[403020354,1769072080441,500.0,0.00016244,2]
[403020355,1769072080472,500.0,0.00016244,2]
[403020356,1769072080509,500.0,0.00016244,2]
[403020357,1769072080524,-160.0,0.00016324,2]
[403020358,1769072103996,502.10002324,0.00013699,2]
[403020359,1769072106277,500.0,0.00013273,2]
[403020360,1769072106333,500.0,0.00013699,2]
[403020361,1769072107419,326.22063245,0.00013273,2]
[403020362,1769072107441,173.77936755,0.00013273,2]
[403020363,1769072108257,392.34024822,0.00013699,2]
[403020364,1769072108440,642.36040562,0.00016244,2]
[403020365,1769072108559,500.0,0.00013699,2]
[403020366,1769072108937,284.29965886,0.00013699,2]
[403020367,1769072120779,536.77369162,0.00013273,2]
[403020368,1769072123412,500.0,0.00013273,2]
[403020369,1769072123461,500.0,0.00013273,2]
[403020370,1769072131506,532.3110175,0.00016243,2]
[403020371,1769072132507,437.83768184,0.00016244,2]
[403020372,1769072132997,215.03710901,0.00016244,2]
[403020373,1769072148517,209.74,0.00014936,2]
[403020374,1769072148948,419.49,0.00015647,2]
[403020381,1769072173390,185.44642298,0.00013273,2]
[403020382,1769072174045,300.0,0.00013673,2]
[403020386,1769072179020,4170.5943968,0.00016244,2]
[403020387,1769072179045,10000.01,0.00016244,2]
[403020388,1769072179067,10000.01,0.00016244,2]
[403020389,1769072179090,10000.01,0.00016244,2]
[403020390,1769072179112,10000.01,0.00016244,2]
[403020391,1769072179136,10000.01,0.00016244,2]
[403020392,1769072179158,10000.01,0.00016244,2]
[403020393,1769072179180,10000.01,0.00016244,2]
[403020394,1769072179201,10000.01,0.00016244,2]
[403020402,1769072236528,-500.0,0.00013273,2]
[403020403,1769072236548,-23.11337929,0.00013699,2]
[403020404,1769072239553,-188.14685305,0.00013699,2]
[403020405,1769072241686,-288.73976766,0.00013699,2]
[403020406,1769072241708,-11.26023234,0.00013821,2]
[403020407,1769072248545,-341.2434867,0.00013821,2]
[403020408,1769072253588,-266.50508567,0.00013821,2]
[403020409,1769072256383,-174.61951844,0.00013821,2]
[403020410,1769072257920,-206.37167685,0.00013821,2]
[403020411,1769072257941,-140.50766969,0.00014368,2]
[403020412,1769072259946,-505.58774595,0.00014368,2]
[403020413,1769072263387,-412.70369349,0.00014368,2]
[403020414,1769072275363,160.0,4.2e-07,2]
[403020415,1769072275893,160.0,4.2e-07,2]
[403020416,1769072276929,160.0,4.2e-07,2]
[403020417,1769072277973,160.0,4.2e-07,2]
[403020418,1769072279047,160.0,4.2e-07,2]
[403020419,1769072280078,160.0,4.2e-07,2]
[403020420,1769072281195,160.0,4.2e-07,2]
[403020421,1769072282252,160.0,4.2e-07,2]
[403020422,1769072283396,160.0,4.2e-07,2]
[403020423,1769072296889,-168.66691581,0.00013699,2]
[403020424,1769072299364,-293.55100673,0.00013699,2]
[403020425,1769072301022,-37.78207746,0.00013699,2]
[403020426,1769072301043,-203.64218814,0.00013699,2]
[403020427,1769072304995,-166.66666668,0.00013699,2]
[403020428,1769072310566,-129.69114518,0.00013699,2]
[403020429,1769072310594,-134.46664771,0.00014368,2]
[403020430,1769072310623,-2547.90860302,0.00016,7]
[403020431,1769072312892,230.32,0.00014939,2]
[403020432,1769072313297,460.63,0.0001565,2]
[403020435,1769072350692,-471.10705075,0.00013273,2]
[403020443,1769072403032,-28.89294925,0.00013273,2]
[403020444,1769072403054,-374.26903754,0.00013821,2]
[403020445,1769072403078,-9.18762,0.00014,2]
[403020446,1769072404731,-155.45899327,0.00013273,2]
[403020447,1769072407408,-206.22919274,0.00013273,2]
[403020448,1769072412430,-133.54496574,0.00013273,2]
[403020449,1769072412451,-142.70568299,0.00014,2]
[403020450,1769072415301,-295.37190398,0.00014,2]
[403020451,1769072417896,-246.53221559,0.00014,2]
[403020452,1769072420760,-306.20257744,0.00014,2]
[403020453,1769072420784,-42.16815184,0.00014,2]
[403020454,1769072424543,-196.62144387,0.00014,2]
[403020455,1769072426905,-282.97895445,0.00014,2]
[403020456,1769072430130,-198.31310189,0.00014,2]
[403020457,1769072435650,-151.85702194,0.00014,2]
[403020458,1769072438308,-128.06132601,0.00014,2]
[403020459,1769072438335,-339.09648517,0.00014,2]
[403020460,1769072441360,-330.10752351,0.00014,2]
[403020461,1769072445534,-302.60827705,0.00014,2]
[403020462,1769072448220,-28.18771427,0.00014,2]
[403020463,1769072448243,-188.83333128,0.00014,2]
[403020464,1769072451162,-228.92096661,0.00014,2]
[403020465,1769072453999,-261.97610125,0.00014,2]
[403020466,1769072457853,-286.07962094,0.00014,2]
[403020467,1769072460606,-34.18997992,0.00014,2]
[403020468,1769072460626,-293.4125603,0.00014,2]
[403020469,1769072465248,-209.21092804,0.00014,2]
[403020470,1769072466867,-222.66874224,0.00013699,2]
[403020471,1769072468951,-269.25042385,0.00013273,2]
[403020472,1769072473495,-221.33913174,0.00013273,2]
[403020473,1769072478697,-18.20680848,0.00013273,2]
[403020474,1769072478719,-136.56319152,0.00013699,2]
[403020475,1769072480187,-140.76806624,0.00013699,2]
[403020476,1769072480209,-126.25193376,0.00014,2]
[403020477,1769072487424,-301.46,0.00014,2]
[403020478,1769072490996,-69.6645779,0.00014,2]
[403020479,1769072491020,-82.1854221,0.00014,2]
[403020480,1769072493290,-468.591588,0.00014,2]
[403020481,1769072495189,-166.44951346,0.00014,2]
[403020482,1769072498723,-168.95889854,0.00014,2]
[403020489,1769072534831,-501.20262158,0.00013273,2]
[403020490,1769072538206,-113.8145779,0.00014,2]
[403020491,1769072538229,-41.8554221,0.000143,2]
[403020492,1769072541435,-178.93984212,0.000143,2]
[403020493,1769072542835,-151.94015788,0.000143,2]
[403020494,1769072564106,-72.3100142,0.000143,2]
[403020495,1769072564141,-150.0,0.00014312,2]
[403020496,1769072564194,-95.84401669,0.00014933,2]
[403020498,1769072584039,39.26142351,0.00013699,2]
[403020502,1769072599372,-238.56,0.00013273,2]
[403020503,1769072601526,-149.28262399,0.00013273,2]
[403020504,1769072601547,-31.79737601,0.00013273,2]
[403020505,1769072603125,-211.25,0.00013273,2]
[403020506,1769072606228,-205.13,0.00013273,2]
[403020507,1769072610160,-50.61945508,0.00013273,2]
[403020508,1769072610181,-106.28470849,0.00013699,2]
[403020509,1769072614409,-270.36418827,0.00013699,2]
[403020510,1769072616447,-135.12845541,0.00013699,2]
[403020511,1769072616468,-74.60319275,0.00013699,2]
[403020513,1769072621492,-357.43,0.00013699,2]
[403020515,1769072645826,500.0,0.00013273,2]
[403020516,1769072647450,500.0,0.00013273,2]
[403020523,1769072703343,506.84723515,0.00013273,2]
[403020524,1769072705963,500.0,0.00013273,2]
[403020526,1769072767068,-67.96680725,0.00013699,2]
[403020527,1769072767090,-101.59319275,0.00013699,2]
[403020528,1769072768218,509.92585908,0.00013273,2]
[403020529,1769072769267,-239.65,0.00013699,2]
[403020530,1769072796762,-158.75680725,0.00013699,2]
[403020531,1769072796805,-89.68496199,0.00014937,2]
[403020533,1769072826077,-158.75680725,0.00014938,2]
[403020534,1769072880076,213.28,2.997e-05,2]
[403020535,1769072880369,213.28,2.997e-05,2]
[403020536,1769072901203,1000.0,0.00013699,2]
[403020575,1769073032201,-317.6,0.00014935,2]
[403020577,1769073032210,-635.0,0.00014935,2]
[403020579,1769073032219,-635.21,0.00015646,2]
[403020581,1769073032228,-150.0,0.00016351,2]
[403020583,1769073032237,-952.81,0.00016357,2]
[403020585,1769073032246,-165.5377863,0.00016391,2]
[403020587,1769073032255,-1270.42,0.00017069,2]
[403020589,1769073032264,-160.0,0.00017268,2]
[403020591,1769073032273,-1041.66666667,0.00017568,2]
[403020593,1769073032283,-1000.0,0.00017731,2]
[403020595,1769073032292,-1588.02,0.0001778,2]
[403020597,1769073032301,-300.0,0.00017818,2]
[403020599,1769073032310,-5841.01355214,0.00017819,2]
[403020601,1769073032319,-1349.742504,0.00018053,2]
[403020603,1769073032331,-4791.5702244,0.00018149,2]
[403020605,1769073032342,-500.0,0.00018158,2]
[403020607,1769073032351,-500.0,0.00018158,2]
[403020609,1769073032360,-500.0,0.00018158,2]
[403020611,1769073032369,-500.0,0.00018158,2]
[403020613,1769073032378,-505.97701634,0.00018158,2]
[403020615,1769073032386,-500.0,0.00018158,2]
[403020617,1769073032395,-264.28669855,0.00018158,2]
[403020619,1769073032404,-500.0,0.00018158,2]
[403020621,1769073032413,-500.0,0.00018158,2]
[403020622,1769073032422,-584.27861276,0.00018158,2]